Workbook

Sheet Sheet1
A1: 随州市2018年一般公共预算收入预期目标明细表
U2: 单位：万元
A3: 收入科目 | B3: 全市 | E3: 市本级 | H3: 曾都区 | K3: 随县 | N3: 广水 | Q3: 高新区 | T3: 大洪山
B4: 2018预计 | C4: 2017完成 （实际金库数） | D4: 同比增长% | E4: 2018预计 | F4: 2017完成 （实际金库数） | G4: 同比增长% | H4: 2018预计 | I4: 2017完成 （实际金库数） | J4: 同比增长% | K4: 2018预计 | L4: 2017完成 （实际金库数） | M4: 同比增长% | N4: 2018预计 | O4: 2017完成 （实际金库数） | P4: 同比增长% | Q4: 2018预计 | R4: 2017完成 （实际金库数） | S4: 同比增长% | T4: 2018预计 | U4: 2017完成 （实际金库数） | V4: 同比增长%
A5: 一、地方一般公共预算收入 | B5: =E5+H5+K5+N5+Q5+T5 -> 467322 | C5: =F5+I5+L5+O5+R5+U5 -> 485962 | D5: =(B5-C5)/C5*100 -> -3.8 | E5: =SUM(E6,E22) -> 122791 | F5: 125817 | G5: =(E5-F5)/F5*100 -> -2.4 | H5: 88647 | I5: 99038 | J5: =(H5-I5)/I5*100 -> -10.5 | K5: =SUM(K6,K22) -> 69965 | L5: 80100 | M5: =(K5-L5)/L5*100 -> -12.7 | N5: =SUM(N6,N22) -> 124267 | O5: 121410 | P5: =(N5-O5)/O5*100 -> 2.4 | Q5: 59398 | R5: 57648 | S5: =(Q5-R5)/R5*100 -> 3.0 | T5: 2254 | U5: 1949 | V5: =(T5-U5)/U5*100 -> 15.6
A6: （一）税收收入 | B6: =E6+H6+K6+N6+Q6+T6 -> 364547 | C6: 325309 | D6: =(B6-C6)/C6*100 -> 12.1 | E6: =SUM(E7:E21) -> 89416 | F6: 80025 | G6: =(E6-F6)/F6*100 -> 11.7 | H6: 77733 | I6: 67595 | J6: =(H6-I6)/I6*100 -> 15.0 | K6: =SUM(K7:K21) -> 50567 | L6: 45957 | M6: =(K6-L6)/L6*100 -> 10.0 | N6: =SUM(N7:N21) -> 88440 | O6: 79122 | P6: =(N6-O6)/O6*100 -> 11.8 | Q6: 56804 | R6: 51141 | S6: =(Q6-R6)/R6*100 -> 11.1 | T6: 1587 | U6: 1469 | V6: =(T6-U6)/U6*100 -> 8.0
A7: 国内增值税50% | B7: 98605 | C7: 81530 | D7: 20.9 | E7: 7632 | F7: =[1]Sheet2!D7 -> 6876 | G7: 11.0 | H7: 20961 | I7: =[1]Sheet2!E7 -> 18228 | J7: 15.0 | K7: 15387 | L7: =[1]Sheet2!F7 -> 13774 | M7: 11.7 | N7: 34110 | O7: =[1]Sheet2!G7 -> 30237 | P7: 12.8 | Q7: 20042 | R7: =[1]Sheet2!H7 -> 11895 | S7: 68.5 | T7: 473 | U7: =[1]Sheet2!I7 -> 520 | V7: -9.0
A8: 改征增值税、营业税 | B8: 59575 | C8: 56125 | D8: 6.1 | E8: 22242 | F8: =[1]Sheet2!D8+[1]Sheet2!D9 -> 20038 | G8: 11.0 | H8: 13570 | I8: =[1]Sheet2!E8+[1]Sheet2!E9 -> 11800 | J8: 15.0 | K8: 4558 | L8: =[1]Sheet2!F8+[1]Sheet2!F9 -> 6621 | M8: -31.2 | N8: 12150 | O8: =[1]Sheet2!G8+[1]Sheet2!G9 -> 11230 | P8: 8.2 | Q8: 6824 | R8: =[1]Sheet2!H8+[1]Sheet2!H9 -> 6180 | S8: 10.4 | T8: 231 | U8: =[1]Sheet2!I8+[1]Sheet2!I9 -> 256 | V8: -9.8
A9: 企业所得税40% | B9: 41418 | C9: 41022 | D9: 1.0 | E9: 17017 | F9: =[1]Sheet2!D10 -> 15331 | G9: 11.0 | H9: 5566 | I9: =[1]Sheet2!E10 -> 4841 | J9: 15.0 | K9: 4878 | L9: =[1]Sheet2!F10 -> 4246 | M9: 14.9 | N9: 6240 | O9: =[1]Sheet2!G10 -> 5677 | P9: 9.9 | Q9: 7602 | R9: =[1]Sheet2!H10 -> 10801 | S9: -29.6 | T9: 115 | U9: =[1]Sheet2!I10 -> 126 | V9: -8.7
A10: 个人所得税40% | B10: 15014 | C10: 15404 | D10: -2.5 | E10: 5925 | F10: =[1]Sheet2!D11 -> 5338 | G10: 11.0 | H10: 3747 | I10: =[1]Sheet2!E11 -> 3258 | J10: 15.0 | K10: 1312 | L10: =[1]Sheet2!F11 -> 1202 | M10: 9.2 | N10: 2240 | O10: =[1]Sheet2!G11 -> 2041 | P10: =(N10-O10)/O10*100 -> 9.8 | Q10: 1748 | R10: =[1]Sheet2!H11 -> 3515 | S10: -50.3 | T10: 42 | U10: =[1]Sheet2!I11 -> 50 | V10: -16.0
A11: 资源税 | B11: 8289 | C11: 7683 | D11: 7.9 | F11: =[1]Sheet2!D12 -> 0 | H11: 143 | I11: =[1]Sheet2!E12 -> 125 | J11: 14.4 | K11: 7846 | L11: =[1]Sheet2!F12 -> 7374 | M11: 6.4 | N11: 300 | O11: =[1]Sheet2!G12 -> 184 | P11: 63.0 | R11: =[1]Sheet2!H12 -> 0 | U11: =[1]Sheet2!I12 -> 0
A12: 城市维护建设税 | B12: 28317 | C12: 25359 | D12: 11.7 | E12: 4784 | F12: =[1]Sheet2!D13 -> 4310 | G12: 11.0 | H12: 5213 | I12: =[1]Sheet2!E13 -> 4533 | J12: 15.0 | K12: 2473 | L12: =[1]Sheet2!F13 -> 2107 | M12: 17.4 | N12: 12000 | O12: =[1]Sheet2!G13 -> 10895 | P12: 10.1 | Q12: 3773 | R12: =[1]Sheet2!H13 -> 3430 | S12: 10.0 | T12: 74 | U12: =[1]Sheet2!I13 -> 84 | V12: -11.9
A13: 房产税 | B13: 8779 | C13: 7786 | D13: 12.8 | E13: 2476 | F13: =[1]Sheet2!D14 -> 2231 | G13: 11.0 | H13: 2352 | I13: =[1]Sheet2!E14 -> 2044 | J13: 15.1 | K13: 615 | L13: =[1]Sheet2!F14 -> 450 | M13: 36.7 | N13: 1250 | O13: =[1]Sheet2!G14 -> 1163 | P13: 7.5 | Q13: 2086 | R13: =[1]Sheet2!H14 -> 1896 | S13: 10.0 | U13: =[1]Sheet2!I14 -> 2 | V13: -100.0
A14: 印花税 | B14: 4289 | C14: 3888 | D14: 10.3 | E14: 823 | F14: =[1]Sheet2!D15 -> 741 | G14: 11.1 | H14: 959 | I14: =[1]Sheet2!E15 -> 834 | J14: 15.0 | K14: 471 | L14: =[1]Sheet2!F15 -> 470 | M14: 0.2 | N14: 1000 | O14: =[1]Sheet2!G15 -> 898 | P14: 11.4 | Q14: 1026 | R14: =[1]Sheet2!H15 -> 933 | S14: 10.0 | T14: 10 | U14: =[1]Sheet2!I15 -> 12 | V14: -16.7
A15: 城镇土地使用税 | B15: 9580 | C15: 8598 | D15: 11.4 | E15: 1153 | F15: =[1]Sheet2!D16 -> 1039 | G15: 11.0 | H15: 2310 | I15: =[1]Sheet2!E16 -> 2009 | J15: 15.0 | K15: 489 | L15: =[1]Sheet2!F16 -> 398 | M15: 22.9 | N15: 2200 | O15: =[1]Sheet2!G16 -> 2036 | P15: 8.1 | Q15: 3428 | R15: =[1]Sheet2!H16 -> 3116 | S15: 10.0 | U15: =[1]Sheet2!I16 -> 0
A16: 土地增值税 | B16: 20195 | C16: 18080 | D16: 11.7 | E16: 5871 | F16: =[1]Sheet2!D17 -> 5289 | G16: 11.0 | H16: 4609 | I16: =[1]Sheet2!E17 -> 4008 | J16: 15.0 | K16: 1447 | L16: =[1]Sheet2!F17 -> 1236 | M16: 17.1 | N16: 4050 | O16: =[1]Sheet2!G17 -> 3710 | P16: 9.2 | Q16: 4197 | R16: =[1]Sheet2!H17 -> 3815 | S16: 10.0 | T16: 21 | U16: =[1]Sheet2!I17 -> 22 | V16: -4.5
A17: 车船税 | B17: 6741 | C17: 5974 | D17: 12.8 | E17: 3469 | F17: =[1]Sheet2!D18 -> 3125 | G17: 11.0 | H17: 1603 | I17: =[1]Sheet2!E18 -> 1393 | J17: 15.1 | K17: 567 | L17: =[1]Sheet2!F18 -> 496 | M17: 14.3 | N17: 1100 | O17: =[1]Sheet2!G18 -> 958 | P17: 14.8 | Q17: 2 | R17: =[1]Sheet2!H18 -> 2 | S17: 0.0 | U17: =[1]Sheet2!I18 -> 0
A18: 耕地占用税 | B18: 40792 | C18: 35491 | D18: 14.9 | E18: 15621 | F18: =[1]Sheet2!D19 -> 14073 | G18: 11.0 | H18: 6542 | I18: =[1]Sheet2!E19 -> 4819 | J18: 35.8 | K18: 7554 | L18: =[1]Sheet2!F19 -> 6839 | M18: 10.5 | N18: 6500 | O18: =[1]Sheet2!G19 -> 5768 | P18: 12.7 | Q18: 3975 | R18: =[1]Sheet2!H19 -> 3614 | S18: 10.0 | T18: 600 | U18: =[1]Sheet2!I19 -> 378 | V18: 58.7
A19: 契税 | B19: 19687 | C19: 18369 | D19: 7.2 | E19: 1814 | F19: =[1]Sheet2!D20 -> 1634 | G19: 11.0 | H19: 10158 | I19: =[1]Sheet2!E20 -> 9703 | J19: 4.7 | K19: 793 | L19: =[1]Sheet2!F20 -> 744 | M19: 6.6 | N19: 4800 | O19: =[1]Sheet2!G20 -> 4325 | P19: 11.0 | Q19: 2101 | R19: =[1]Sheet2!H20 -> 1944 | S19: 8.1 | T19: 21 | U19: =[1]Sheet2!I20 -> 19 | V19: 10.5
A20: 烟叶税 | B20: 0 | C20: 0
A21: 环保税 | B21: 3266 | C21: 0 | E21: 589 | K21: 2177 | N21: 500
A22: （二）非税收入 | B22: 102775 | C22: 160653 | D22: -36.0 | E22: =SUM(E23:E29) -> 33375 | F22: 45792 | G22: -27.1 | H22: 10914 | I22: 31443 | J22: -65.3 | K22: 19398 | L22: 34143 | M22: -43.2 | N22: 35827 | O22: 42288 | P22: -15.3 | Q22: 2594 | R22: 6507 | S22: -60.1 | T22: 667 | U22: 480 | V22: 39.0
A23: 专项收入 | B23: 20489 | C23: 19637 | D23: 4.3 | E23: 5507 | F23: =[1]Sheet2!D22 -> 5457 | G23: 0.9 | H23: 3353 | I23: =[1]Sheet2!E22 -> 2962 | J23: 13.2 | K23: 2098 | L23: =[1]Sheet2!F22 -> 2142 | M23: -2.1 | N23: 7252 | O23: =[1]Sheet2!G22 -> 6933 | P23: 4.6 | Q23: 2200 | R23: =[1]Sheet2!H22 -> 2075 | S23: 6.0 | T23: 79 | U23: =[1]Sheet2!I22 -> 68 | V23: 16.2
A24: 行政性收费 | B24: 30105 | C24: 66470 | D24: -54.7 | E24: 13316 | F24: =[1]Sheet2!D26 -> 21733 | G24: -38.7 | H24: 2981 | I24: =[1]Sheet2!E26 -> 8157 | J24: -63.5 | K24: 4692 | L24: =[1]Sheet2!F26 -> 17923 | M24: -73.8 | N24: 8523 | O24: =[1]Sheet2!G26 -> 15735 | P24: -45.8 | Q24: 159 | R24: =[1]Sheet2!H26 -> 2854 | S24: -94.4 | T24: 434 | U24: =[1]Sheet2!I26 -> 68 | V24: 538.2
A25: 罚没收入 | B25: 20867 | C25: 21157 | D25: -1.4 | E25: 6138 | F25: =[1]Sheet2!D27 -> 6138 | G25: 0.0 | H25: 2660 | I25: =[1]Sheet2!E27 -> 3310 | J25: -19.6 | K25: 5200 | L25: =[1]Sheet2!F27 -> 4853 | M25: 7.2 | N25: 6740 | O25: =[1]Sheet2!G27 -> 6740 | P25: 0.0 | Q25: 120 | R25: =[1]Sheet2!H27 -> 109 | S25: 10.1 | T25: 9 | U25: =[1]Sheet2!I27 -> 7 | V25: 28.6
A26: 国有资本经营收入 | B26: 0 | C26: 7550 | D26: -100.0 | E26: 0 | F26: =[1]Sheet2!D29 -> 4000 | G26: -100.0 | I26: =[1]Sheet2!E29 -> 2250 | J26: -100.0 | L26: =[1]Sheet2!F29 -> 0 | O26: =[1]Sheet2!G29 -> 0 | Q26: 0 | R26: =[1]Sheet2!H29 -> 1300 | S26: -100.0 | U26: =[1]Sheet2!I29 -> 0
A27: 国有资源有偿收入 | B27: 23538 | C27: 38387 | D27: -38.7 | E27: 6298 | F27: =[1]Sheet2!D30 -> 6298 | G27: 0.0 | H27: 1920 | I27: =[1]Sheet2!E30 -> 14764 | J27: -87.0 | K27: 7000 | L27: =[1]Sheet2!F30 -> 8853 | M27: -20.9 | N27: 8060 | O27: =[1]Sheet2!G30 -> 8060 | P27: 0.0 | Q27: 115 | R27: =[1]Sheet2!H30 -> 169 | S27: -32.0 | T27: 145 | U27: =[1]Sheet2!I30 -> 243 | V27: -40.3
A28: 政府住房基金收入 | B28: 1969 | C28: 1959 | D28: 0.5 | E28: 1629 | F28: =[1]Sheet2!D33 -> 1488 | G28: 9.5 | I28: =[1]Sheet2!E33 -> 0 | L28: =[1]Sheet2!F33 -> 131 | M28: -100.0 | N28: 340 | O28: =[1]Sheet2!G33 -> 340 | P28: 0.0 | R28: =[1]Sheet2!H33 -> 0 | U28: =[1]Sheet2!I33 -> 0
A29: 其他收入 | B29: 5807 | C29: 5493 | D29: 5.7 | E29: 487 | F29: =[1]Sheet2!D34+[1]Sheet2!D32 -> 678 | G29: -28.2 | I29: =[1]Sheet2!E34+[1]Sheet2!E32 -> 0 | K29: 408 | L29: =[1]Sheet2!F34+[1]Sheet2!F32 -> 241 | M29: 69.3 | N29: 4912 | O29: =[1]Sheet2!G34+[1]Sheet2!G32 -> 4480 | P29: 9.6 | R29: =[1]Sheet2!H34+[1]Sheet2!H32 -> 0 | U29: =[1]Sheet2!I34+[1]Sheet2!I32 -> 94 | V29: -100.0
A30: 二、上划中央税收收入 | B30: 331304 | C30: 307090 | D30: 7.9 | E30: =SUM(E31:E35) -> 86252 | F30: 77706 | G30: 11.0 | H30: 48619 | I30: 42281 | J30: 15.0 | K30: 28486 | L30: 28616 | M30: -0.5 | N30: 124980 | O30: 115666 | P30: 8.1 | Q30: 42027 | R30: 41781 | S30: 0.6 | T30: 940 | U30: 1040 | V30: -9.6
A31: 国内增值税50% | B31: 98605 | C31: 81530 | D31: 20.9 | E31: 7632 | F31: =[1]Sheet3!C6 -> 6876 | G31: 11.0 | H31: 20961 | I31: =[1]Sheet3!D6 -> 18228 | J31: 15.0 | K31: 15387 | L31: =[1]Sheet3!E6 -> 13774 | M31: 11.7 | N31: 34110 | O31: =[1]Sheet3!F6 -> 30237 | P31: 12.8 | Q31: 20042 | R31: =[1]Sheet3!G6 -> 11895 | S31: 68.5 | T31: 473 | U31: =[1]Sheet3!H6 -> 520 | V31: -9.0
A32: 改征增值税、营业税 | B32: 59575 | C32: 56125 | D32: 6.1 | E32: 22242 | F32: =[1]Sheet3!C7 -> 20038 | G32: 11.0 | H32: 13570 | I32: =[1]Sheet3!D7 -> 11800 | J32: 15.0 | K32: 4558 | L32: =[1]Sheet3!E7 -> 6621 | M32: -31.2 | N32: 12150 | O32: =[1]Sheet3!F7 -> 11230 | P32: 8.2 | Q32: 6824 | R32: =[1]Sheet3!G7 -> 6180 | S32: 10.4 | T32: 231 | U32: =[1]Sheet3!H7 -> 256 | V32: -9.8
A33: 国内消费税100% | B33: 90589 | C33: 84797 | D33: 6.8 | E33: 21965 | F33: =[1]Sheet3!C8 -> 19788 | G33: 11.0 | H33: 118 | I33: =[1]Sheet3!D8 -> 105 | J33: 12.4 | K33: 50 | L33: =[1]Sheet3!E8 -> 49 | M33: 2.0 | N33: 66000 | O33: =[1]Sheet3!F8 -> 62622 | P33: 5.4 | Q33: 2456 | R33: =[1]Sheet3!G8 -> 2233 | S33: 10.0 | U33: =[1]Sheet3!H8 -> 0
A34: 企业所得税60% | B34: 61292 | C34: 61532 | D34: -0.4 | E34: 25526 | F34: =[1]Sheet3!C9 -> 22997 | G34: 11.0 | H34: 8350 | I34: =[1]Sheet3!D9 -> 7261 | J34: 15.0 | K34: 6480 | L34: =[1]Sheet3!E9 -> 6369 | M34: 1.7 | N34: 9360 | O34: =[1]Sheet3!F9 -> 8515 | P34: 9.9 | Q34: 11403 | R34: =[1]Sheet3!G9 -> 16201 | S34: -29.6 | T34: 173 | U34: =[1]Sheet3!H9 -> 189 | V34: -8.5
A35: 个人所得税60% | B35: 21243 | C35: 23106 | D35: -8.1 | E35: 8887 | F35: =[1]Sheet3!C10 -> 8007 | G35: 11.0 | H35: 5620 | I35: =[1]Sheet3!D10 -> 4887 | J35: 15.0 | K35: 2011 | L35: =[1]Sheet3!E10 -> 1803 | M35: 11.5 | N35: 3360 | O35: =[1]Sheet3!F10 -> 3062 | P35: 9.7 | Q35: 1302 | R35: =[1]Sheet3!G10 -> 5272 | S35: -75.3 | T35: 63 | U35: =[1]Sheet3!H10 -> 75 | V35: -16.0
A36: 三、地方财政总收入 | B36: =SUM(B5,B30) -> 798626 | C36: =F36+I36+L36+O36+R36+U36 -> 793052 | D36: 0.7 | E36: =SUM(E5,E30) -> 209043 | F36: 203523 | G36: 2.7 | H36: 137266 | I36: 141319 | J36: -2.9 | K36: 98451 | L36: 108716 | M36: -9.4 | N36: 249247 | O36: 237076 | P36: 5.1 | Q36: 101425 | R36: 99429 | S36: 2.0 | T36: =SUM(T5,T30) -> 3194 | U36: 2989 | V36: 6.9
C37: 0
A38: 附表： | C38: 0
A39: 征收部门 | B39: 全市 | E39: 市本级 | H39: 曾都区 | K39: 随县 | N39: 广水 | Q39: 高新区 | T39: 大洪山
B40: 2018预计 | C40: 2017完成 （实际金库数） | D40: 同比增长% | E40: 2018预计 | F40: 2017完成 （实际金库数） | G40: 同比增长% | H40: 2018预计 | I40: 2017完成 （实际金库数） | J40: 同比增长% | K40: 2018预计 | L40: 2017完成 （实际金库数） | M40: 同比增长% | N40: 2018预计 | O40: 2017完成 （实际金库数） | P40: 同比增长% | Q40: 2018预计 | R40: 2017完成 （实际金库数） | S40: 同比增长% | T40: 2018预计 | U40: 2017完成 （实际金库数） | V40: 同比增长%
A41: 地方一般公共预算收入 | B41: =E41+H41+K41+N41+Q41+T41 -> 467322 | C41: 485962 | D41: -3.8 | E41: =SUM(E42,E43,E46) -> 122791 | F41: 125817 | G41: -2.4 | H41: 88647 | I41: =SUM(I42,I43,I46) -> 99038 | J41: -10.5 | K41: 69965 | L41: =SUM(L42,L43,L46) -> 80100 | M41: -12.7 | N41: 124267 | O41: =SUM(O42,O43,O46) -> 121410 | P41: 2.4 | Q41: =Q43+Q42+Q46 -> 59398 | R41: =SUM(R42,R43,R46) -> 57648 | S41: 3.0 | T41: 2254 | U41: 1949 | V41: 15.6
A42: 1.国税收入 | B42: 178220 | C42: 157956 | D42: 12.8 | E42: 42751 | F42: =[1]Sheet2!D43 -> 38515 | G42: 11.0 | H42: 35188 | I42: =[1]Sheet2!E43 -> 30005 | J42: 17.3 | K42: 24265 | L42: =[1]Sheet2!F43 -> 22059 | M42: 10.0 | N42: 49700 | O42: =[1]Sheet2!G43 -> 43981 | P42: 13.0 | Q42: 25366 | R42: =[1]Sheet2!H43 -> 22545 | S42: 12.5 | T42: 950 | U42: =[1]Sheet2!I43 -> 851 | V42: 11.6
A43: 2.地税收入 | B43: 202735 | C43: 182207 | D43: 11.3 | E43: =SUM(E44:E45) -> 50297 | F43: 45142 | G43: 11.4 | H43: 45899 | I43: =SUM(I44:I45) -> 40505 | J43: 13.3 | K43: 28400 | L43: =SUM(L44:L45) -> 25829 | M43: 10.0 | N43: 43801 | O43: =SUM(O44:O45) -> 39452 | P43: 11.0 | Q43: 33638 | R43: =SUM(R44:R45) -> 30593 | S43: 10.0 | T43: 700 | U43: 686 | V43: 2.0
A44: 其中：税收收入 | B44: 186329 | C44: 167353 | D44: 11.3 | E44: =F44*1.11+E21 -> 46665 | F44: =[1]Sheet2!D5-[1]Sheet2!D43 -> 41510 | G44: 12.4 | H44: 42547 | I44: =[1]Sheet2!E5-[1]Sheet2!E43 -> 37590 | J44: 13.2 | K44: 26302 | L44: =[1]Sheet2!F5-[1]Sheet2!F43 -> 23898 | M44: 10.1 | N44: 38740 | O44: =[1]Sheet2!G5-[1]Sheet2!G43 -> 35141 | P44: 10.2 | Q44: 31438 | R44: =[1]Sheet2!H5-[1]Sheet2!H43 -> 28596 | S44: 9.9 | T44: 637 | U44: =[1]Sheet2!I5-[1]Sheet2!I43 -> 618 | V44: 3.1
A45: 代征非税 | B45: 16406 | C45: 14854 | D45: 10.4 | E45: 3632 | F45: =[1]Sheet2!D40+[1]Sheet2!D39+[1]Sheet2!D38+[1]Sheet2!D24+[1]Sheet2!D23 -> 3632 | G45: 0.0 | H45: 3352 | I45: =[1]Sheet2!E40+[1]Sheet2!E39+[1]Sheet2!E38+[1]Sheet2!E24+[1]Sheet2!E23 -> 2915 | J45: 15.0 | K45: 2098 | L45: =[1]Sheet2!F40+[1]Sheet2!F39+[1]Sheet2!F38+[1]Sheet2!F24+[1]Sheet2!F23 -> 1931 | M45: 8.6 | N45: 5061 | O45: =[1]Sheet2!G40+[1]Sheet2!G39+[1]Sheet2!G38+[1]Sheet2!G24+[1]Sheet2!G23 -> 4311 | P45: 17.4 | Q45: 2200 | R45: =[1]Sheet2!H40+[1]Sheet2!H39+[1]Sheet2!H38+[1]Sheet2!H24+[1]Sheet2!H23 -> 1997 | S45: 10.2 | T45: 63 | U45: =[1]Sheet2!I40+[1]Sheet2!I39+[1]Sheet2!I38+[1]Sheet2!I24+[1]Sheet2!I23 -> 68 | V45: -7.4
A46: 3.财政收入 | B46: 86367 | C46: 145799 | D46: -40.8 | E46: =E47+E48 -> 29743 | F46: =F47 -> 42160 | G46: -29.5 | H46: 7560 | I46: =I47 -> 28528 | J46: -73.5 | K46: 17300 | L46: 32212 | M46: -46.3 | N46: 30766 | O46: 37977 | P46: -19.0 | Q46: 394 | R46: 4510 | S46: -91.3 | T46: 604 | U46: 412 | V46: 46.6
A47: 其中：非税收入 | B47: 86367 | C47: 145799 | D47: -40.8 | E47: =E22-E45 -> 29743 | F47: =[1]Sheet2!D45 -> 42160 | G47: -29.5 | H47: 7560 | I47: =[1]Sheet2!E45 -> 28528 | J47: -73.5 | K47: 17300 | L47: =[1]Sheet2!F45 -> 32212 | M47: -46.3 | N47: 30766 | O47: =[1]Sheet2!G45 -> 37977 | P47: -19.0 | Q47: 394 | R47: =[1]Sheet2!H45 -> 4510 | S47: -91.3 | T47: 604 | U47: =[1]Sheet2!I45 -> 412 | V47: 46.6
A48: 中央所得税返还 | B48: 0
N51: =N50-N49 -> 0

Sheet Sheet2

Sheet Sheet3
